bitfinex-derivatives/quotes_BNBF0:USTF0_20230901
["timestamp","ask_amount","ask_price","bid_price","bid_amount"]
[1693554173111,0.0763539,213.63,211.44,1.71764287]
[1693554173112,0.0763539,213.63,211.49,0.17205275]
[1693554173310,0.0763539,213.63,211.5,0.17205275]
[1693554173512,0.0763539,213.63,211.51,0.17205275]
[1693554173710,0.0763539,213.63,211.52,0.17205275]
[1693554173912,0.0763539,213.63,211.44,1.71764287]
[1693554180910,0.0763539,213.64,211.44,1.71764287]
[1693554185722,0.0763539,213.63,211.44,1.71764287]
[1693554195226,0.509026,213.68,211.44,1.71764287]
[1693554195227,0.0763539,213.64,211.44,1.71764287]
[1693554195426,0.0763539,213.63,211.44,1.71764287]
[1693554195627,0.0763539,213.64,211.44,1.71764287]
[1693554195931,0.0763539,213.63,211.44,1.71764287]
[1693554196127,0.0763539,213.64,211.44,1.71764287]
[1693554196427,0.0763539,213.63,211.44,1.71764287]
[1693554214542,0.0763539,213.64,211.44,1.71764287]
[1693554218048,0.0763539,213.63,211.44,1.71764287]
[1693554228057,0.0763539,213.62,211.44,1.71764287]
[1693554228257,0.0763539,213.63,211.44,1.71764287]
[1693554230458,0.0763539,213.63,211.45,0.17205275]
[1693554230655,0.0763539,213.63,211.43,1.71764287]
[1693554238158,0.0763539,213.64,211.43,1.71764287]
[1693554242968,0.0763539,213.63,211.43,1.71764287]
[1693554243169,0.0763539,213.64,211.43,1.71764287]
[1693554252780,0.0763539,213.63,211.43,1.71764287]
[1693554261186,0.0763539,213.62,211.43,1.71764287]
[1693554272303,0.0763539,213.63,211.43,1.71764287]
[1693554283805,0.07436731,213.63,211.43,1.71764287]
[1693554286311,0.1527078,213.64,211.43,1.71764287]
[1693554286815,0.1527078,213.65,211.43,1.71764287]
[1693554289114,0.1527078,213.65,210.63,0.17205275]
[1693554289115,0.1527078,213.65,211.44,1.88969562]
[1693554289311,0.1527078,213.65,211.44,1.71764287]
[1693554293916,0.1527078,213.65,211.45,0.17205275]
[1693554294121,0.1527078,213.65,211.46,0.17205275]
[1693554294313,0.1527078,213.65,211.47,0.17205275]
[1693554294513,0.1527078,213.65,211.43,1.71764287]
[1693554295116,0.1527078,213.71,211.43,1.71764287]
[1693554295314,0.1527078,213.72,211.43,1.71764287]
[1693554295519,0.1527078,213.75,211.43,1.71764287]
[1693554296419,0.1527078,213.76,211.43,1.71764287]
[1693554297519,0.1527078,213.77,211.43,1.71764287]
[1693554298616,0.1527078,213.78,211.5,1.71764287]
[1693554300618,0.1527078,213.79,211.5,1.71764287]
[1693554301514,0.1527078,213.81,211.5,1.71764287]
[1693554303020,0.1527078,213.81,211.53,1.71764287]
[1693554303619,0.1527078,213.8,211.53,1.71764287]
[1693554304522,0.1527078,213.85,211.53,1.71764287]
[1693554304821,0.1527078,213.83,211.53,1.71764287]
[1693554305520,0.1527078,213.82,211.53,1.71764287]
[1693554305715,0.1527078,213.81,211.53,1.71764287]
[1693554306716,0.1527078,213.79,211.53,1.71764287]
[1693554307621,0.1527078,213.78,211.56,1.71764287]
[1693554308317,0.1527078,213.77,211.56,1.71764287]
[1693554308721,0.1527078,213.76,211.56,1.71764287]
[1693554309722,0.1527078,213.75,211.56,1.71764287]
[1693554310623,0.1527078,213.74,211.56,1.71764287]
[1693554311823,0.1527078,213.73,211.56,1.71764287]
[1693554312023,0.1527078,213.73,211.55,1.71764287]
[1693554312618,0.1527078,213.72,211.55,1.71764287]
[1693554313719,0.1527078,213.68,211.55,1.71764287]
[1693554313925,0.1527078,213.67,211.55,1.71764287]
[1693554315718,0.1527078,213.66,211.55,1.71764287]
[1693554316323,0.1527078,213.66,211.51,1.71764287]
[1693554317730,0.1527078,213.65,211.51,1.71764287]
[1693554319632,0.1527078,213.64,211.51,1.71764287]
[1693554321736,0.1527078,213.63,211.51,1.71764287]
[1693554323334,0.1527078,213.62,211.51,1.71764287]
[1693554324338,0.1527078,213.67,211.51,1.71764287]
[1693554324638,0.1527078,213.66,211.52,1.88969562]
[1693554324840,0.1527078,213.66,211.53,0.17205275]
[1693554325039,0.1527078,213.66,211.54,0.17205275]
[1693554325233,0.1527078,213.66,211.55,0.17205275]
[1693554325436,0.1527078,213.66,211.52,1.71764287]
[1693554325636,2.54513002,213.78,211.52,1.71764287]
[1693554325637,0.1527078,213.65,211.52,1.71764287]
[1693554326741,0.1527078,213.64,211.52,1.71764287]
[1693554327643,0.1527078,213.62,211.52,1.71764287]
[1693554327840,0.1527078,213.63,211.52,1.71764287]
[1693554328037,0.1527078,213.62,211.52,1.71764287]
[1693554328436,0.1527078,213.61,211.56,1.71764287]
[1693554329043,0.1527078,213.61,211.56,1.88969562]
[1693554329238,0.1527078,213.61,211.57,0.17205275]
[1693554329438,0.1527078,213.61,211.58,0.17205275]
[1693554329646,0.1527078,213.59,211.59,0.17205275]
[1693554329846,0.1527078,213.59,211.56,1.71764287]
[1693554330543,0.1527078,213.58,211.56,1.71764287]
[1693554334445,0.1527078,213.57,211.56,1.71764287]
[1693554337449,0.1527078,213.58,211.56,1.71764287]
[1693554337846,0.1527078,213.57,211.56,1.71764287]
[1693554338550,0.1527078,213.58,211.56,1.71764287]
[1693554339152,3.56318203,213.71,211.56,1.71764287]
[1693554339153,0.1527078,213.59,211.56,1.71764287]
[1693554339553,0.1527078,213.6,211.56,1.71764287]
[1693554339748,0.1527078,213.59,211.56,1.71764287]
[1693554340454,0.1527078,213.6,211.58,1.71764287]
[1693554343455,0.1527078,213.61,211.58,1.71764287]
[1693554344358,0.1527078,213.62,211.57,1.71764287]
[1693554345057,0.1527078,213.63,211.57,1.71764287]
[1693554345653,0.1527078,213.64,211.57,1.71764287]
[1693554346551,0.1527078,213.65,211.57,1.71764287]
[1693554347454,0.1527078,213.66,211.57,1.71764287]
[1693554348057,0.1527078,213.67,211.57,1.71764287]
[1693554348357,0.1527078,213.67,211.58,1.71764287]
[1693554348560,0.1527078,213.68,211.58,1.71764287]
[1693554349554,0.1527078,213.69,211.58,1.71764287]
[1693554350360,0.1527078,213.71,211.58,1.71764287]
[1693554351456,0.1527078,213.73,211.58,1.71764287]
[1693554351658,0.1527078,213.72,211.58,1.71764287]
[1693554352260,0.1527078,213.72,211.59,1.71764287]
[1693554352460,0.1527078,213.74,211.59,1.71764287]
[1693554353263,0.1527078,213.75,211.59,1.71764287]
[1693554353564,0.1527078,213.77,211.59,1.71764287]
[1693554354561,0.1527078,213.8,211.59,1.71764287]
[1693554355667,0.1527078,213.79,211.59,1.71764287]
[1693554356262,0.1527078,213.79,211.6,1.88969562]
[1693554356460,0.1527078,213.8,211.6,1.71764287]
[1693554356864,0.1527078,213.79,211.6,1.71764287]
[1693554357165,0.1527078,213.8,211.6,1.71764287]
[1693554357658,2.54513002,213.91,211.6,1.71764287]
[1693554357659,0.1527078,213.79,211.6,1.71764287]
[1693554358461,0.1527078,213.8,211.6,1.71764287]
[1693554358666,0.1527078,213.79,211.6,1.71764287]
[1693554359567,0.1527078,213.8,211.6,1.71764287]
[1693554362667,0.1527078,213.81,211.6,1.71764287]
[1693554367667,0.1527078,213.8,211.6,1.71764287]
[1693554368471,0.1527078,213.81,211.6,1.71764287]
[1693554368669,0.1527078,213.8,211.6,1.71764287]
[1693554369972,0.1527078,213.81,211.6,1.71764287]
[1693554370174,0.1527078,213.82,211.6,1.71764287]
[1693554370570,0.1527078,213.83,211.6,1.71764287]
[1693554371774,0.1527078,213.82,211.6,1.71764287]
[1693554373277,0.1527078,213.82,211.62,1.71764287]
[1693554373476,0.1527078,213.82,211.62,1.88969562]
[1693554373676,0.1527078,213.82,211.63,0.17205275]
[1693554373872,0.1527078,213.82,211.64,0.17205275]
[1693554374079,0.1527078,213.82,211.65,0.17205275]
[1693554374377,0.1527078,213.82,211.66,0.17205275]
[1693554374579,0.1527078,213.82,211.62,1.71764287]
[1693554374779,0.1527078,213.83,211.62,1.71764287]
[1693554375578,0.1527078,213.84,211.62,1.71764287]
[1693554376779,0.1527078,213.85,211.62,1.71764287]
[1693554378575,0.1527078,213.86,211.62,1.71764287]
[1693554379885,0.1527078,213.87,211.62,1.71764287]
[1693554382277,0.1527078,213.87,211.63,1.71764287]
[1693554384880,0.1527078,213.86,211.63,1.71764287]
[1693554386887,0.1527078,213.86,211.64,0.17205275]
[1693554387087,0.1527078,213.86,211.62,1.71764287]
[1693554394688,0.1527078,213.91,211.62,1.71764287]
[1693554395693,2.54513002,214.02,211.62,1.71764287]
[1693554395694,0.1527078,213.92,211.62,1.71764287]
[1693554396089,0.1527078,213.92,211.67,1.71764287]
[1693554396595,0.1527078,213.93,211.67,1.71764287]
[1693554398695,0.1527078,213.94,211.67,1.71764287]
[1693554400392,0.1527078,213.94,211.68,1.71764287]
[1693554402697,0.1527078,213.93,211.68,1.71764287]
[1693554403295,0.1527078,213.94,211.68,1.71764287]
[1693554403799,0.07641424,213.91,211.68,1.71764287]
[1693554404793,0.07641424,213.91,211.69,0.17205275]
[1693554404998,0.07641424,213.91,211.7,0.17205275]
[1693554405198,0.07641424,213.91,211.71,0.17205275]
[1693554405395,0.07641424,213.91,211.67,1.71764287]
[1693554405903,0.07641424,213.9,211.67,1.71764287]
[1693554408007,0.07641424,213.91,211.67,1.71764287]
[1693554408605,0.07641424,213.9,211.67,1.71764287]
[1693554409006,0.07641424,213.91,211.68,1.71764287]
[1693554409605,0.07641424,213.9,211.68,1.71764287]
[1693554416713,0.07641424,213.89,211.68,1.71764287]
[1693554421814,0.07641424,213.88,211.68,1.71764287]
[1693554425618,0.07641424,213.87,211.68,1.71764287]
[1693554426020,0.07641424,213.88,211.68,1.71764287]
[1693554426214,0.07641424,213.87,211.68,1.71764287]
[1693554428519,0.1527078,213.89,211.68,1.71764287]
[1693554428520,0.07641424,213.86,211.68,1.71764287]
[1693554429721,1.018052,213.93,211.68,1.71764287]
[1693554429722,0.07641424,213.85,211.68,1.71764287]
[1693554430120,0.07641424,213.85,211.69,1.71764287]
[1693554437925,0.07641424,213.86,211.69,1.71764287]
[1693554442630,0.07641424,213.87,211.69,1.71764287]
[1693554445734,0.07641424,213.88,211.69,1.71764287]
[1693554448735,0.07641424,213.89,211.69,1.71764287]
[1693554449128,0.07641424,213.88,211.69,1.71764287]
[1693554449531,0.07641424,213.89,211.69,1.71764287]
[1693554449735,0.07641424,213.88,211.69,1.71764287]
[1693554450036,0.07641424,213.89,211.69,1.71764287]
[1693554450238,0.07641424,213.89,211.7,1.88969562]
[1693554450535,0.07641424,213.89,211.71,0.17205275]
[1693554450836,0.07641424,213.88,211.72,0.17205275]
[1693554451031,0.07641424,213.88,211.73,0.17205275]
[1693554451236,0.07641424,213.88,211.74,0.17205275]
[1693554451436,0.07641424,213.89,211.7,1.71764287]
[1693554451637,0.07641424,213.88,211.7,1.71764287]
[1693554454240,0.07641424,213.88,211.69,1.71764287]
[1693554454636,0.07641424,213.89,211.69,1.71764287]
[1693554458342,0.07641424,213.89,211.7,1.88969562]
[1693554458537,0.07641424,213.89,211.71,0.17205275]
[1693554458739,0.07641424,213.89,211.72,0.17205275]
[1693554458940,0.07641424,213.89,211.73,0.17205275]
[1693554459146,0.07641424,213.89,211.74,0.17205275]
[1693554459343,0.07641424,213.89,211.75,0.17205275]
[1693554459544,0.07641424,213.89,211.76,0.17205275]
[1693554459744,0.07641424,213.89,211.77,0.17205275]
[1693554459946,0.07641424,213.89,211.78,0.17205275]
[1693554460141,0.07641424,213.89,211.7,1.71764287]
[1693554468548,0.07641424,213.9,211.7,1.71764287]
[1693554468748,0.07641424,213.89,211.7,1.71764287]
[1693554469654,0.07641424,213.91,211.7,1.71764287]
[1693554469854,0.07641424,213.93,211.7,1.71764287]
[1693554470153,0.07641424,213.93,211.73,1.71764287]
[1693554470554,0.07641424,213.94,211.73,1.88969562]
[1693554470751,0.07641424,213.94,211.74,0.17205275]
[1693554470951,0.07641424,213.93,211.75,0.17205275]
[1693554471155,0.07641424,213.93,211.76,0.17205275]
[1693554471351,0.07641424,213.93,211.77,0.17205275]
[1693554471549,0.07641424,213.94,211.78,0.17205275]
[1693554471856,0.07641424,213.94,211.79,0.17205275]
[1693554472057,0.07641424,213.94,211.8,0.17205275]
[1693554472357,0.07641424,213.94,211.81,0.17205275]
[1693554472557,0.07641424,213.94,211.82,0.17205275]
[1693554472751,0.07641424,213.94,211.73,1.71764287]
[1693554472752,0.07641424,213.94,211.83,0.17205275]
[1693554472951,0.07641424,213.94,211.73,1.71764287]
[1693554473853,0.07641424,213.94,211.74,0.17205275]
[1693554474057,0.07641424,213.94,211.75,0.17205275]
[1693554474257,0.07641424,213.94,211.76,0.17205275]
[1693554474453,0.07641424,213.94,211.72,1.71764287]
[1693554475455,0.07641424,213.95,211.72,1.71764287]
[1693554477357,0.07641424,213.94,211.72,1.71764287]
[1693554478557,0.07641424,213.95,211.72,1.71764287]
[1693554478959,0.07641424,213.94,211.72,1.71764287]
[1693554479459,0.07641424,213.95,211.72,1.71764287]
[1693554481559,0.07641424,213.93,211.72,1.71764287]
[1693554485266,0.07641424,213.93,211.73,0.17205275]
[1693554485466,0.07641424,213.93,211.74,0.17205275]
[1693554485660,0.07641424,213.93,211.7,1.71764287]
[1693554486863,0.07641424,213.94,211.7,1.71764287]
[1693554487070,0.07641424,214.0,211.7,1.71764287]
[1693554487568,0.07641424,214.03,211.7,1.71764287]
[1693554488463,0.07641424,214.04,211.7,1.71764287]
[1693554489070,0.07641424,214.04,211.79,1.71764287]
[1693554489469,0.07641424,214.05,211.79,1.71764287]
[1693554489863,0.07641424,214.06,211.79,1.71764287]
[1693554490570,0.07641424,214.05,211.79,1.71764287]
[1693554491467,0.07641424,214.04,211.79,1.71764287]
[1693554491670,0.07641424,214.03,211.79,1.71764287]
[1693554492464,0.07641424,214.02,211.79,1.71764287]
[1693554493466,0.07641424,214.01,211.79,1.71764287]
[1693554494573,0.1527078,214.03,211.79,1.71764287]
[1693554494574,0.07641424,214.0,211.79,1.71764287]
[1693554495076,0.07620177,214.0,211.79,1.71764287]
[1693554496572,0.07620177,213.99,211.79,1.71764287]
[1693554497575,0.50801183,214.04,211.79,1.71764287]
[1693554497576,0.07620177,213.98,211.79,1.71764287]
[1693554499680,0.07620177,213.97,211.79,1.71764287]
[1693554500380,0.07620177,213.96,211.79,1.71764287]
[1693554501580,0.07620177,213.95,211.79,1.71764287]
[1693554503480,0.07620177,213.94,211.79,1.71764287]
[1693554505478,0.07620177,213.93,211.79,1.71764287]
[1693554509587,0.07620177,213.92,211.79,1.71764287]
[1693554511486,0.07620177,213.91,211.79,1.71764287]
[1693554513585,0.07620177,213.9,211.79,1.71764287]
[1693554517190,0.07620177,213.89,211.79,1.71764287]
[1693554517692,0.07620177,213.9,211.79,1.71764287]
[1693554518492,0.07620177,213.89,211.79,1.71764287]
[1693554519597,0.07620177,213.88,211.79,1.71764287]
[1693554520496,0.07620177,213.87,211.79,1.71764287]
[1693554521292,0.07620177,213.86,211.79,1.71764287]
[1693554521496,0.07620177,213.83,211.79,1.71764287]
[1693554521691,0.15240355,213.86,211.79,1.71764287]
[1693554521692,0.07620177,213.84,211.79,1.71764287]
[1693554525495,0.07620177,213.85,211.79,1.71764287]
[1693554526494,0.07620177,213.86,211.79,1.71764287]
[1693554527394,0.07620177,213.87,211.79,1.71764287]
[1693554529499,0.07620177,213.88,211.79,1.71764287]
[1693554530602,0.07620177,213.89,211.79,1.71764287]
[1693554532500,0.07620177,213.9,211.79,1.71764287]
[1693554533706,0.07620177,213.91,211.79,1.71764287]
[1693554534505,0.07620177,213.92,211.79,1.71764287]
[1693554535208,0.07620177,213.92,210.76,0.17205275]
[1693554535209,0.07620177,213.92,211.8,1.88969562]
[1693554535406,0.07620177,213.93,211.8,1.71764287]
[1693554535607,0.07620177,213.93,211.81,0.17205275]
[1693554535804,0.07620177,213.93,211.82,0.17205275]
[1693554536005,0.07620177,213.93,211.83,0.17205275]
[1693554536205,0.07620177,213.93,211.8,1.71764287]
[1693554537506,0.07620177,213.94,211.8,1.71764287]
[1693554538606,0.07620177,213.95,211.8,1.71764287]
[1693554539506,0.07620177,213.96,211.8,1.71764287]
[1693554542207,0.07620177,213.98,211.8,1.71764287]
[1693554543410,0.07620177,214.0,211.8,1.71764287]
[1693554544715,0.07620177,214.01,211.8,1.71764287]
[1693554545115,0.07620177,214.01,211.81,1.71764287]
[1693554560024,0.07620177,214.0,211.81,1.71764287]
[1693554560524,0.07620177,213.99,211.81,1.71764287]
[1693554560727,0.07620177,214.0,211.81,1.71764287]
[1693554560927,0.07620177,213.99,211.81,1.71764287]
[1693554561227,0.07620177,214.0,211.81,1.71764287]
[1693554561828,0.07620177,214.0,211.82,0.17205275]
[1693554562029,0.07620177,214.0,211.83,0.17205275]
[1693554562329,0.07620177,214.0,211.84,0.17205275]
[1693554562524,0.07620177,214.0,211.8,1.71764287]
[1693554573832,0.07620177,214.01,211.8,1.71764287]
[1693554589944,0.07620177,214.02,211.8,1.71764287]
[1693554590543,0.07620177,214.01,211.8,1.71764287]
[1693554591342,0.07620177,214.01,211.81,1.71764287]
[1693554595545,0.07620177,214.02,211.81,1.71764287]
[1693554598252,0.07620177,214.02,211.82,1.88969562]
[1693554598550,0.07620177,214.02,211.83,0.17205275]
[1693554598751,0.07620177,214.02,211.84,0.17205275]
[1693554598952,0.07620177,214.03,211.85,0.17205275]
[1693554599155,0.07620177,214.03,211.86,0.17205275]
[1693554599345,0.07620177,214.03,211.82,1.71764287]
[1693554600449,0.07620177,214.02,211.82,1.71764287]
[1693554601854,0.07620177,214.02,210.62,0.43415671]
[1693554601855,0.07620177,214.02,211.81,1.71764287]
[1693554609757,0.07620177,214.02,211.82,1.71764287]
[1693554618062,0.07620177,214.02,211.83,0.17205275]
[1693554618364,0.07620177,214.02,211.84,0.17205275]
[1693554618565,0.07620177,214.02,211.85,0.17205275]
[1693554618764,0.07620177,214.02,211.86,0.17205275]
[1693554618965,0.07620177,214.02,211.87,0.17205275]
[1693554619168,0.07620177,214.02,211.88,0.17205275]
[1693554619368,0.07620177,214.02,211.81,1.71764287]
[1693554626978,0.07620177,214.02,211.82,1.88969562]
[1693554627181,0.07620177,214.02,211.83,0.17205275]
[1693554627378,0.07620177,214.02,211.82,1.71764287]
[1693554630881,0.07620177,214.01,211.82,1.71764287]
[1693554631283,0.07620177,214.01,211.83,0.17205275]
[1693554631583,0.07620177,214.01,211.84,0.17205275]
[1693554631777,0.07620177,214.01,211.81,1.71764287]
[1693554631778,0.07620177,214.01,211.85,0.17205275]
[1693554631981,0.07620177,214.01,211.81,1.71764287]
[1693554644390,0.07620177,214.01,211.82,1.71764287]
[1693554646200,0.07620177,214.0,211.82,1.71764287]
[1693554646394,0.07620177,214.01,211.82,1.71764287]
[1693554648704,0.07620177,214.01,211.83,0.17205275]
[1693554648904,0.07620177,214.01,211.81,1.71764287]
[1693554662913,0.07620177,214.02,211.81,1.71764287]
[1693554665808,0.07620177,214.02,211.82,1.88969562]
[1693554666011,0.07620177,214.02,211.83,0.17205275]
[1693554666207,0.07620177,214.02,211.82,1.71764287]
[1693554670513,0.07620177,214.03,211.82,1.71764287]
[1693554685826,0.07620177,214.02,211.82,1.71764287]
[1693554687230,0.07620177,214.02,211.81,1.71764287]
[1693554690934,0.07620177,214.01,211.81,1.71764287]
[1693554695937,0.07620177,214.01,211.8,1.71764287]
[1693554698443,0.07620177,214.02,211.8,1.71764287]
[1693554699136,0.07620177,214.01,211.8,1.71764287]
[1693554699341,0.07620177,214.02,211.8,1.71764287]
[1693554699940,0.07620177,214.01,211.8,1.71764287]
[1693554700144,0.07620177,214.01,211.81,0.17205275]
[1693554700445,0.07620177,214.01,211.82,0.17205275]
[1693554700639,0.07620177,214.01,211.83,0.17205275]
[1693554700844,0.07620177,214.01,211.79,1.71764287]
[1693554701343,0.07620177,214.02,211.79,1.71764287]
[1693554704346,0.07620177,214.02,211.8,1.88969562]
[1693554704544,0.07620177,214.02,211.8,1.71764287]
[1693554711058,0.07620177,213.96,211.8,1.71764287]
[1693554711457,0.07620177,213.97,211.8,1.71764287]
[1693554712159,0.07620177,213.98,211.8,1.71764287]
[1693554712360,0.07620177,213.98,211.74,1.71764287]
[1693554712660,0.07620177,213.99,211.74,1.71764287]
[1693554715556,0.07620177,214.0,211.74,1.71764287]
[1693554717561,0.07620177,213.99,211.74,1.71764287]
[1693554719455,0.07620177,213.98,211.74,1.71764287]
[1693554722859,0.07620177,213.97,211.74,1.71764287]
[1693554724965,0.07620177,213.96,211.74,1.71764287]
[1693554726963,0.07620177,213.95,211.74,1.71764287]
[1693554728964,0.07620177,213.94,211.74,1.71764287]
[1693554729263,0.07620177,213.95,211.74,1.71764287]
[1693554729462,0.15240355,213.97,211.74,1.71764287]
[1693554729463,0.07620177,213.94,211.74,1.71764287]
[1693554732967,0.07620177,213.93,211.74,1.71764287]
[1693554736170,0.07620177,213.93,211.73,1.71764287]
[1693554736771,0.07620177,213.92,211.73,1.71764287]
[1693554740273,0.07620177,213.92,211.74,1.71764287]
[1693554740474,0.07620177,213.96,211.74,1.71764287]
[1693554741066,0.07620177,213.97,211.74,1.71764287]
[1693554744171,0.07620177,213.98,211.74,1.71764287]
[1693554744477,0.07620177,213.97,211.78,1.71764287]
[1693554744869,0.07620177,213.98,211.78,1.71764287]
[1693554746975,0.07620177,213.99,211.78,1.71764287]
[1693554748171,0.07620177,213.99,211.79,1.88969562]
[1693554748375,0.07620177,213.99,211.8,0.17205275]
[1693554748573,0.07620177,213.99,211.81,0.17205275]
[1693554748878,0.07620177,214.0,211.82,0.17205275]
[1693554749079,0.07620177,214.0,211.83,0.17205275]
[1693554749276,0.07620177,214.0,211.84,0.17205275]
[1693554749577,0.07620177,214.0,211.85,0.17205275]
[1693554749779,0.07620177,214.0,211.86,0.17205275]
[1693554749974,0.07620177,214.0,211.79,1.71764287]
[1693554751577,0.07620177,214.01,211.79,1.71764287]
[1693554753780,0.07620177,214.02,211.79,1.71764287]
[1693554763586,0.07620177,214.03,211.79,1.71764287]
[1693554763987,0.07620177,214.02,211.79,1.71764287]
[1693554764788,0.07620177,214.03,211.79,1.71764287]
[1693554764988,0.07620177,214.02,211.79,1.71764287]
[1693554765291,0.07620177,214.02,211.8,1.88969562]
[1693554765585,0.07620177,214.02,211.81,0.17205275]
[1693554765784,0.07620177,214.02,211.82,0.17205275]
[1693554765985,0.07620177,214.02,211.83,0.17205275]
[1693554766186,0.07620177,214.02,211.8,1.71764287]
[1693554769991,0.07620177,214.01,211.8,1.71764287]
[1693554771991,0.07620177,214.0,211.8,1.71764287]
[1693554773889,0.07620177,213.99,211.8,1.71764287]
[1693554774786,0.07620177,213.97,211.8,1.71764287]
[1693554775387,0.07620177,213.98,211.8,1.71764287]
[1693554783997,0.07620177,213.99,211.8,1.71764287]
[1693554787101,0.07620177,214.0,211.8,1.71764287]
[1693554793898,0.07620177,213.95,211.8,1.71764287]
[1693554794103,0.07620177,213.94,211.8,1.71764287]
[1693554795007,0.07620177,213.96,211.8,1.71764287]
[1693554795805,0.07620177,213.97,211.81,0.17205275]
[1693554795999,0.07620177,213.97,211.75,1.71764287]
[1693554796798,0.07620177,213.98,211.75,1.71764287]
[1693554797901,0.07620177,213.99,211.75,1.71764287]
[1693554800304,0.07620177,213.99,210.62,0.43415671]
[1693554800305,0.07620177,213.99,211.76,0.17205275]
[1693554800507,0.07620177,213.99,211.77,0.17205275]
[1693554800708,0.07620177,213.99,211.74,1.71764287]
[1693554800910,0.07620177,214.0,211.74,1.71764287]
[1693554804109,0.07620177,214.01,211.74,1.71764287]
[1693554805115,0.07620177,214.01,211.75,1.88969562]
[1693554805317,0.07620177,214.01,211.75,1.71764287]
[1693554809717,0.07620177,214.02,211.75,1.71764287]
[1693554810117,0.07620177,214.01,211.75,1.71764287]
[1693554813517,0.07620177,214.0,211.75,1.71764287]
[1693554815123,0.07620177,214.04,211.75,1.71764287]
[1693554815323,0.07620177,214.05,211.75,1.71764287]
[1693554819227,0.07620177,214.05,211.8,1.71764287]
[1693554819429,0.07636107,214.05,211.8,1.71764287]
[1693554831536,0.07636107,214.06,211.8,1.71764287]
[1693554832536,0.07636107,214.06,211.81,1.88969562]
[1693554832738,0.07636107,214.05,211.81,1.71764287]
[1693554832931,0.07636107,214.05,211.82,0.17205275]
[1693554833238,0.07636107,214.05,211.83,0.17205275]
[1693554833437,0.07636107,214.05,211.84,0.17205275]
[1693554833639,0.07636107,214.05,211.85,0.17205275]
[1693554833831,0.07636107,214.05,211.86,0.17205275]
[1693554834033,0.07636107,214.05,211.87,0.17205275]
[1693554834239,0.07636107,214.05,211.88,0.17205275]
[1693554834539,0.07636107,214.05,211.89,0.17205275]
[1693554834734,0.07636107,214.06,211.81,1.71764287]
[1693554835039,0.07636107,214.05,211.81,1.71764287]
[1693554838736,0.07636107,214.04,211.81,1.71764287]
[1693554842437,0.07636107,214.03,211.81,1.71764287]
[1693554845046,1.01814764,214.1,211.81,1.71764287]
[1693554845047,0.07636107,214.02,211.81,1.71764287]
[1693554846846,0.07636107,214.01,211.81,1.71764287]
[1693554847745,0.07636107,214.0,211.81,1.71764287]
[1693554848841,0.07636107,213.99,211.81,1.71764287]
[1693554850651,0.07636107,213.98,211.81,1.71764287]
[1693554852647,0.07636107,213.98,211.82,1.88969562]
[1693554852848,0.07636107,213.98,211.83,0.17205275]
[1693554853143,0.07636107,213.98,211.84,0.17205275]
[1693554853348,0.07636107,213.98,211.85,0.17205275]
[1693554853548,0.07636107,213.98,211.86,0.17205275]
[1693554853748,0.07636107,213.98,211.82,1.71764287]
[1693554857852,0.07636107,213.99,211.82,1.71764287]
[1693554860351,0.07636107,214.0,211.82,1.71764287]
[1693554860548,0.07636107,213.99,211.82,1.71764287]
[1693554860750,0.07636107,214.0,211.82,1.71764287]
[1693554862749,0.07636107,214.01,211.82,1.71764287]
[1693554864351,0.07636107,214.01,211.83,1.88969562]
[1693554864555,0.07636107,214.01,211.84,0.17205275]
[1693554864755,0.07636107,214.02,211.85,0.17205275]
[1693554864959,0.07636107,214.02,211.86,0.17205275]
[1693554865255,0.07636107,214.02,211.87,0.17205275]
[1693554865456,0.07636107,214.02,211.88,0.17205275]
[1693554865658,0.07636107,214.02,211.83,1.71764287]
[1693554866858,0.07636107,214.03,211.83,1.71764287]
[1693554867656,0.07636107,214.04,211.83,1.71764287]
[1693554882270,0.07636107,214.11,211.83,1.71764287]
[1693554882569,0.07636107,214.14,211.83,1.71764287]
[1693554883571,0.07636107,214.15,211.83,1.71764287]
[1693554884675,0.07636107,214.16,211.83,1.71764287]
[1693554885974,0.07636107,214.16,211.9,1.71764287]
[1693554886677,0.07636107,214.15,211.9,1.71764287]
[1693554888575,0.07636107,214.14,211.9,1.71764287]
[1693554888775,0.07636107,214.15,211.9,1.71764287]
[1693554889574,0.07636107,214.14,211.9,1.71764287]
[1693554890575,0.07636107,214.13,211.9,1.71764287]
[1693554891572,0.07636107,214.14,211.9,1.71764287]
[1693554891773,0.07636107,214.13,211.9,1.71764287]
[1693554893678,0.07636107,214.12,211.9,1.71764287]
[1693554895579,1.01814764,214.19,211.9,1.71764287]
[1693554895580,0.07636107,214.11,211.9,1.71764287]
[1693554897678,0.07636107,214.1,211.9,1.71764287]
[1693554901984,0.07636107,214.09,211.9,1.71764287]
[1693554904589,0.07636107,214.08,211.9,1.71764287]
[1693554906185,0.07636107,214.08,211.91,0.17205275]
[1693554906392,0.07636107,214.08,211.92,0.17205275]
[1693554906592,0.07636107,214.08,211.93,0.17205275]
[1693554906792,0.07636107,214.08,211.94,0.17205275]
[1693554906990,0.07636107,214.08,211.95,0.17205275]
[1693554907190,0.07636107,214.08,211.89,1.71764287]
[1693554907793,0.07636107,214.07,211.89,1.71764287]
[1693554908893,0.07636107,214.06,211.89,1.71764287]
[1693554910093,0.07636107,214.06,211.88,1.71764287]
[1693554910593,1.01814764,214.13,211.88,1.71764287]